bitfinex/quotes_BTCUSD_20250522
["timestamp","ask_amount","ask_price","bid_price","bid_amount"]
[1747922108892,0.1997979,111250.0,111240.0,0.51979144]
[1747922109116,0.1997979,111250.0,111240.0,0.6094]
[1747922109329,0.1997979,111250.0,111240.0,0.79818101]
[1747922109566,0.1997979,111250.0,111240.0,0.6094]
[1747922109793,0.1997979,111250.0,111240.0,0.78919144]
[1747922110027,0.01997712,111250.0,111240.0,0.80717042]
[1747922110266,0.01997712,111250.0,111240.0,3.88591866]
[1747922110486,0.002,111250.0,111240.0,3.88591866]
[1747922110714,0.01098803,111250.0,111240.0,3.95051866]
[1747922110977,0.002,111250.0,111240.0,4.04006422]
[1747922111226,0.003,111250.0,111240.0,4.04506422]
[1747922111693,0.003,111250.0,111240.0,3.77566422]
[1747922111926,0.003,111250.0,111240.0,4.00979422]
[1747922114712,0.003,111250.0,111240.0,4.00983422]
[1747922115972,0.003,111250.0,111240.0,3.74043422]
[1747922116179,0.003,111250.0,111240.0,4.00983422]
[1747922116389,0.21872862,111250.0,111240.0,3.87969966]
[1747922116613,0.01198803,111250.0,111240.0,3.88868866]
[1747922116841,0.003,111250.0,111240.0,3.92158866]
[1747922117524,0.003,111250.0,111240.0,2.30538866]
[1747922117742,0.003,111250.0,111240.0,2.33828866]
[1747922118832,0.003,111250.0,111240.0,2.42783422]
[1747922119689,0.003,111250.0,111240.0,2.81571422]
[1747922120026,0.003,111250.0,111240.0,2.8137435]
[1747922123587,0.01198803,111250.0,111240.0,2.7808035]
[1747922123786,0.003,111250.0,111240.0,2.7808035]
[1747922124375,0.003,111250.0,111240.0,3.2141635]
[1747922124595,0.0209763,111250.0,111240.0,2.38290894]
[1747922124795,0.20075224,111250.0,111240.0,1.96354928]
[1747922125019,0.30500557,111250.0,111240.0,1.09864]
[1747922125227,0.30500557,111250.0,111240.0,1.43864]
[1747922125448,0.30500557,111250.0,111240.0,1.09864]
[1747922125874,0.30500557,111250.0,111240.0,1.61843144]
[1747922126084,0.20075224,111250.0,111240.0,1.63641033]
[1747922126322,0.20075224,111250.0,111240.0,4.68819101]
[1747922126530,0.19176388,111250.0,111240.0,4.6971805]
[1747922126745,0.18277528,111250.0,111240.0,4.49941]
[1747922126958,0.18277528,111250.0,111240.0,4.68819101]
[1747922127168,0.18277528,111250.0,111240.0,4.6971805]
[1747922128498,0.18277528,111250.0,111240.0,4.6972205]
[1747922128726,0.01198836,111250.0,111240.0,4.70620982]
[1747922128951,0.22771755,111250.0,111240.0,4.72418806]
[1747922129192,0.2277182,111250.0,111240.0,4.72418822]
[1747922129405,0.20974132,111250.0,111240.0,4.71519906]
[1747922129620,0.20974132,111250.0,111240.0,1.57008]
[1747922129843,0.22496404,111250.0,111240.0,0.47944]
[1747922130073,0.43410378,111250.0,111240.0,0.27744]
[1747922130291,0.43410378,111250.0,111240.0,0.00804]
[1747922130948,0.36195045,111250.0,111240.0,0.00504]
[1747922131168,0.36095045,111250.0,111240.0,0.00842579]
[1747922131397,0.42702147,111250.0,111240.0,0.01142579]
[1747922131632,0.42702147,111250.0,111240.0,0.28182579]
[1747922131866,0.36095045,111250.0,111240.0,0.27344]
[1747922132099,0.37095045,111250.0,111240.0,0.27344]
[1747922132325,0.36095045,111250.0,111240.0,0.27344]
[1747922134249,0.21232863,111230.0,111220.0,0.19780564]
[1747922134478,0.2928843,111230.0,111220.0,3.69197564]
[1747922134688,0.2928843,111230.0,111220.0,3.68298478]
[1747922134895,0.2928843,111230.0,111220.0,3.69136663]
[1747922135326,0.2928843,111230.0,111220.0,3.96076663]
[1747922135565,0.28389401,111230.0,111220.0,3.94339368]
[1747922135979,0.28389401,111230.0,111220.0,3.50316118]
[1747922136187,0.31709401,111230.0,111220.0,3.95738495]
[1747922136617,0.31709401,111230.0,111220.0,3.49917]
[1747922136847,0.31709401,111230.0,111220.0,3.76861]
[1747922137052,0.31709401,111230.0,111220.0,3.77699085]
[1747922137274,0.13728641,111230.0,111220.0,3.2629658]
[1747922137501,0.001,111230.0,111220.0,4.45556394]
[1747922137729,0.001,111230.0,111220.0,4.48816394]
[1747922137949,0.01897954,111230.0,111220.0,4.33381838]
[1747922138185,0.02796951,111230.0,111220.0,2.83664846]
[1747922138407,0.03695964,111230.0,111220.0,2.84563908]
[1747922138644,0.02796951,111230.0,111220.0,2.84563908]
[1747922138863,0.001,111230.0,111220.0,2.84563908]
[1747922139009,0.00998965,111230.0,111220.0,2.84563908]
[1747922139431,0.001,111230.0,111220.0,2.84563908]
[1747922139634,0.01897954,111230.0,111220.0,2.14275908]
[1747922139840,0.01897946,111230.0,111220.0,2.84315908]
[1747922140041,0.00998965,111230.0,111220.0,2.84315908]
[1747922140653,0.00998965,111230.0,111220.0,2.83477823]
[1747922141272,0.02796935,111230.0,111220.0,2.83477823]
[1747922141522,0.01897938,111230.0,111220.0,2.83477823]
[1747922141836,0.001,111230.0,111220.0,3.22273823]
[1747922142067,0.001,111230.0,111220.0,3.37578379]
[1747922144694,0.002,111250.0,111240.0,0.54675917]
[1747922144906,0.002,111250.0,111240.0,4.03031473]
[1747922146455,0.003,111250.0,111240.0,4.03431473]
[1747922146924,0.003,111250.0,111240.0,4.03631473]
[1747922147133,0.003,111250.0,111240.0,4.00511473]
[1747922148346,0.003,111250.0,111240.0,3.70307473]
[1747922148604,0.2007524,111250.0,111240.0,1.36404]
[1747922148808,0.47644357,111250.0,111240.0,0.006]
[1747922148994,0.47644357,111250.0,111240.0,0.2754]
[1747922149373,0.47644357,111250.0,111240.0,0.006]
[1747922149575,0.43839214,111250.0,111240.0,0.006]
[1747922149772,0.43839214,111250.0,111240.0,0.2754]
[1747922150184,0.36623881,111250.0,111240.0,0.6154]
[1747922151684,0.36623881,111250.0,111240.0,0.2734]
[1747922151882,0.36523881,111250.0,111240.0,0.2694]
[1747922152090,0.36623881,111250.0,111240.0,0.2694]
[1747922152491,0.36723881,111250.0,111240.0,0.2694]
[1747922152702,0.2324524,111250.0,111240.0,0.45818085]
[1747922152910,0.22346388,111250.0,111240.0,0.2694]
[1747922153131,0.22346388,111250.0,111230.0,0.00899038]
[1747922153132,0.18878093,111240.0,111230.0,0.00899038]
[1747922153335,0.02696797,111240.0,111230.0,3.27653805]
[1747922153549,0.01797808,111240.0,111230.0,3.98584786]
[1747922153709,0.01797808,111240.0,111230.0,3.28552786]
[1747922153920,0.01797808,111240.0,111230.0,3.98584786]
[1747922154117,0.0269674,111240.0,111230.0,3.98584786]
[1747922154320,0.02696732,111240.0,111230.0,3.98584786]
[1747922154842,0.00898892,111240.0,111230.0,3.98584786]
[1747922155185,0.02696716,111240.0,111230.0,3.98584786]
[1747922155387,0.2067586,111240.0,111230.0,3.70745805]
[1747922155537,0.03595648,111240.0,111230.0,3.87077786]
[1747922155741,0.02696716,111240.0,111230.0,3.87077786]
[1747922155952,0.01797792,111240.0,111230.0,3.87077786]
[1747922156154,0.03595649,111240.0,111230.0,3.87077786]
[1747922156360,0.03595649,111240.0,111230.0,1.99238805]
[1747922156361,0.21574793,111240.0,111230.0,1.99238805]
[1747922156721,0.21574793,111240.0,111230.0,1.99238813]
[1747922156899,0.21574793,111240.0,111230.0,2.00137802]
[1747922157110,0.21574793,111240.0,111230.0,1.98339816]
[1747922157327,0.21574793,111240.0,111230.0,1.99238813]
[1747922157531,0.20675901,111240.0,111230.0,1.99238813]
[1747922157740,0.20675901,111240.0,111230.0,1.97440811]
[1747922157948,0.2157485,111240.0,111230.0,1.99238805]
[1747922158906,0.01797816,111240.0,111230.0,2.00137786]
[1747922159366,0.20675892,111240.0,111230.0,2.00137786]
[1747922159591,0.22473798,111240.0,111230.0,2.00137786]
[1747922159790,0.22473798,111240.0,111230.0,1.99238805]
[1747922160047,0.22473798,111240.0,111230.0,1.97444811]
[1747922160269,0.25158101,111240.0,111230.0,1.04036]
[1747922160653,0.25158101,111240.0,111230.0,0.34]
[1747922160875,0.00899046,111220.0,111210.0,0.93473122]
[1747922161099,0.18880844,111230.0,111220.0,0.53780557]
[1747922161100,0.01798034,111230.0,111220.0,0.53780557]
[1747922161381,0.19778794,111230.0,111220.0,3.59857557]
[1747922161633,0.19778794,111230.0,111220.0,3.83169]
[1747922161846,0.26248794,111230.0,111220.0,0.77092]
[1747922162056,0.26248794,111230.0,111220.0,1.04036]
[1747922162508,0.26248794,111230.0,111220.0,1.04136]
[1747922162738,0.27702879,111230.0,111220.0,1.04136]
[1747922162953,0.36657435,111230.0,111220.0,0.43192]
[1747922163224,0.36657435,111230.0,111220.0,0.70236]
[1747922163440,0.36657435,111230.0,111220.0,0.71075224]
[1747922164300,0.36157435,111230.0,111220.0,0.71075224]
[1747922164505,0.36157435,111230.0,111220.0,0.89057601]
[1747922164970,0.23357832,111230.0,111220.0,1.24855813]
[1747922165190,0.23357832,111230.0,111220.0,1.23956711]
[1747922165395,0.23357832,111230.0,111220.0,1.23117487]
[1747922165812,0.20177832,111230.0,111220.0,4.30093589]
[1747922166025,0.20177832,111230.0,111220.0,4.30992675]
[1747922166235,0.19278827,111230.0,111220.0,4.30093589]
[1747922166441,0.1798076,111230.0,111220.0,3.74466597]
[1747922166617,0.2104076,111230.0,111220.0,2.70296597]
[1747922166826,0.2104076,111230.0,111220.0,2.71195691]
[1747922166975,0.1798076,111230.0,111220.0,2.37195691]
[1747922167170,0.1798076,111230.0,111220.0,2.38094769]
[1747922167381,0.1798076,111230.0,111220.0,2.37195691]
[1747922167804,0.2128076,111230.0,111220.0,0.70236]
[1747922168040,0.34799401,111230.0,111220.0,0.002]
[1747922168268,0.70369475,111230.0,111220.0,0.002]
[1747922168473,0.28475564,111220.0,111210.0,0.00015197]
[1747922168681,0.44645453,111220.0,111210.0,0.00015197]
[1747922169714,0.38894506,111220.0,111210.0,0.00015197]
[1747922170334,0.39194506,111220.0,111210.0,0.00015197]
[1747922170510,0.48146657,111220.0,111210.0,0.00015197]
[1747922170749,0.39194506,111220.0,111210.0,0.00015197]
[1747922172927,0.2774998,111190.0,111180.0,0.00204]
[1747922173146,0.72704536,111190.0,111180.0,0.00204]
[1747922173382,0.70704536,111190.0,111180.0,0.00204]
[1747922173600,0.71704536,111190.0,111180.0,0.00204]
[1747922174235,0.72704536,111190.0,111180.0,0.00204]
[1747922174449,0.71704536,111190.0,111180.0,0.00204]
[1747922174671,0.79139201,111190.0,111180.0,0.00204]
[1747922174915,1.14664774,111190.0,111180.0,0.00204]
[1747922175129,1.14664774,111190.0,111160.0,0.002]
[1747922175130,0.22243539,111170.0,111160.0,0.002]
[1747922175342,0.37648095,111170.0,111160.0,0.00213629]
[1747922176249,0.96091328,111160.0,111150.0,0.03229809]
[1747922176454,0.62687455,111150.0,111140.0,0.002]
[1747922176677,0.65116234,111130.0,111120.0,0.002]
[1747922176899,1.0707079,111130.0,111120.0,0.002]
[1747922177111,0.28594225,111110.0,111100.0,0.03429809]
[1747922177332,0.28594225,111110.0,111060.0,0.61764697]
[1747922177333,0.18906978,111070.0,111060.0,0.61764697]
[1747922177555,0.19807286,111070.0,111060.0,3.67841697]
[1747922177770,0.19807286,111070.0,111060.0,3.25886094]
[1747922177979,0.20703826,111090.0,111080.0,0.18005041]
[1747922178188,0.01800398,111080.0,111070.0,0.53807222]
[1747922178402,0.02700625,111080.0,111070.0,3.59884222]
[1747922178689,0.01800236,111090.0,111080.0,0.53805487]
[1747922178909,0.1890355,111090.0,111080.0,0.52905276]
[1747922179514,0.1800342,111090.0,111080.0,0.52905284]
[1747922179756,0.1800342,111090.0,111080.0,0.53805519]
[1747922180003,0.19801922,111100.0,111090.0,0.5200342]
[1747922180218,0.28756478,111100.0,111090.0,4.2791642]
[1747922180635,0.27856429,111100.0,111090.0,1.43750217]
[1747922180845,0.27856429,111100.0,111090.0,1.44650379]
[1747922181060,0.27856429,111100.0,111090.0,1.43750217]
[1747922181281,0.1800018,111110.0,111100.0,0.180018]
[1747922181489,0.02700139,111100.0,111090.0,1.26270753]
[1747922181707,0.17999973,111120.0,111110.0,0.1800018]
[1747922181929,0.00899936,111110.0,111100.0,0.54700597]
[1747922182147,0.02699864,111110.0,111100.0,3.8864563]
[1747922182376,0.01799888,111110.0,111100.0,3.8864563]
[1747922182589,0.03599548,111120.0,111110.0,0.53800173]
[1747922182800,0.22513287,111120.0,111110.0,0.52900189]
[1747922183017,0.20713553,111120.0,111110.0,0.52900189]
[1747922183237,0.20713553,111120.0,111110.0,0.53800173]
[1747922183441,0.20713553,111120.0,111110.0,0.52900189]
[1747922183675,0.19813658,111120.0,111110.0,0.54629294]
[1747922183909,0.19813658,111120.0,111110.0,3.62506238]
[1747922183910,0.00015251,111120.0,111110.0,3.62506238]
[1747922184133,0.00015251,111120.0,111110.0,3.6340619]
[1747922184343,0.00015251,111120.0,111110.0,3.6645619]
[1747922184568,0.00315251,111120.0,111110.0,3.6645619]
[1747922185013,0.00315251,111120.0,111110.0,3.9342419]
[1747922185642,0.00315251,111120.0,111110.0,3.1971719]
[1747922186321,0.00015251,111120.0,111110.0,3.1971719]
[1747922186962,0.00015251,111120.0,111110.0,3.1981719]
[1747922187180,0.00015251,111120.0,111110.0,3.31971746]
[1747922188064,0.00015251,111120.0,111110.0,3.78075746]
[1747922188288,0.00015251,111120.0,111110.0,0.01229696]
[1747922188289,0.3326225,111120.0,111110.0,0.01229696]
[1747922188515,0.486917,111120.0,111110.0,0.01229696]
[1747922188749,0.486917,111120.0,111110.0,0.44113696]
[1747922188972,0.43517583,111120.0,111110.0,0.44113696]
[1747922189414,0.44517583,111120.0,111110.0,0.00929696]
[1747922189632,0.44517583,111120.0,111110.0,0.43713696]
[1747922189850,0.44617583,111120.0,111110.0,0.43713696]
[1747922190326,0.44617583,111120.0,111110.0,0.00829696]
[1747922190596,0.52569734,111120.0,111110.0,0.00829696]
[1747922190867,0.0090043,111050.0,111040.0,0.29595752]
[1747922191089,0.19810854,111050.0,111040.0,1.31816]
[1747922191377,0.19810854,111050.0,111040.0,2.35672]
[1747922191592,0.19810854,111050.0,111040.0,2.36572576]
[1747922191834,0.19226052,111050.0,111040.0,2.37403669]
[1747922192052,0.19226052,111050.0,111040.0,2.22315764]
[1747922192279,0.19226052,111050.0,111040.0,2.56366598]
[1747922192521,0.21611803,111050.0,111040.0,1.14575158]
[1747922192743,0.19810887,111050.0,111040.0,1.33313927]
[1747922192953,0.19810887,111050.0,111040.0,1.67313927]
[1747922193185,0.18008283,111060.0,111040.0,1.17270582]
[1747922193406,0.1800969,111080.0,111050.0,3.58086905]
[1747922193639,0.01800754,111060.0,111050.0,1.65538773]
[1747922193861,0.00900284,111070.0,111060.0,0.19809053]
[1747922194080,0.0090026,111070.0,111060.0,3.25886053]
[1747922194301,0.02700828,111070.0,111060.0,3.9665441]
[1747922194524,0.1885445,111090.0,111080.0,0.52905293]
[1747922194750,0.1885445,111090.0,111080.0,3.8865895]
[1747922194751,0.00847343,111090.0,111080.0,3.8865895]
[1747922194979,0.00847343,111090.0,111080.0,3.85162793]
[1747922195212,0.00847343,111090.0,111080.0,4.04968329]
[1747922195425,0.20700129,111110.0,111100.0,0.19801955]
[1747922195645,0.01799928,111110.0,111100.0,4.36391037]
[1747922195866,0.00015248,111110.0,111100.0,4.3722213]
[1747922196710,0.01815144,111110.0,111100.0,4.3722213]
[1747922197157,0.03615104,111110.0,111100.0,4.3722213]
[1747922197549,0.1981542,111110.0,111100.0,0.94673093]
[1747922197791,0.1981542,111110.0,111100.0,0.39675093]
[1747922197982,0.31889976,111110.0,111100.0,1.09543093]
[1747922198349,0.33344061,111110.0,111100.0,1.09543093]
[1747922199187,0.33444061,111110.0,111100.0,1.09543093]
[1747922199854,0.37616772,111110.0,111100.0,1.09543093]
[1747922200489,0.34296772,111110.0,111100.0,1.09543093]
[1747922200729,0.31176772,111110.0,111100.0,1.09543093]
[1747922200948,0.31176772,111110.0,111100.0,0.00835093]
[1747922201181,0.44214332,111110.0,111100.0,0.00835093]
[1747922201692,0.77214332,111110.0,111100.0,0.00835093]
[1747922202123,0.77214332,111110.0,111060.0,4e-05]
[1747922202124,0.27751355,111070.0,111060.0,4e-05]
[1747922202330,0.36705911,111070.0,111060.0,0.69648]
[1747922202980,0.37558622,111070.0,111060.0,0.69648]
[1747922203190,0.37558622,111070.0,111060.0,4e-05]
[1747922203388,0.37558622,111070.0,111060.0,0.69648]
[1747922203612,0.37558622,111070.0,111060.0,0.69698834]
[1747922203840,0.31068622,111070.0,111060.0,0.69698834]
[1747922204055,0.31168622,111070.0,111060.0,0.69698834]
[1747922204521,0.34398622,111070.0,111060.0,0.69698834]
[1747922204728,0.34398622,111070.0,111060.0,0.69702834]
[1747922204948,0.37588622,111070.0,111060.0,0.00058834]
[1747922205164,0.37588622,111070.0,111060.0,0.69702834]
[1747922205372,0.43254913,111070.0,111060.0,0.00058834]
[1747922205618,0.43254913,111070.0,111060.0,0.42730834]
[1747922206061,0.44678658,111070.0,111060.0,0.42730834]
[1747922206276,0.44578658,111070.0,111060.0,0.42730834]
[1747922206593,0.44478658,111070.0,111060.0,0.00058834]
[1747922206794,0.44578658,111070.0,111060.0,0.00058834]
[1747922206997,0.44778658,111070.0,111060.0,0.00058834]
[1747922207409,0.44678658,111070.0,111060.0,0.00058834]
[1747922207621,0.38655946,111070.0,111060.0,0.00058834]
[1747922207832,0.38955946,111070.0,111060.0,0.00058834]
[1747922208492,0.01800933,111050.0,111040.0,0.0036]
[1747922208713,0.01800933,111050.0,111020.0,0.002]
[1747922208714,0.28718491,111030.0,111020.0,0.002]
[1747922208939,0.42346192,111030.0,111020.0,0.00209146]
[1747922209153,0.37673047,111030.0,111020.0,0.00209146]
[1747922209876,0.39949503,111030.0,111020.0,0.00209146]
[1747922210083,0.39849503,111030.0,111020.0,0.00209146]
[1747922210982,0.18019641,110990.0,110950.0,0.55030121]
[1747922211208,0.18019641,110990.0,110980.0,3.48761]
[1747922211821,0.18019641,110990.0,110980.0,4.09867328]
[1747922212044,0.18019446,111000.0,110980.0,3.68985356]
[1747922212258,0.26974002,111000.0,110990.0,3.26822]
[1747922212688,0.26974002,111000.0,110990.0,0.94112]
[1747922213105,0.60974002,111000.0,110990.0,0.94112]
[1747922213534,0.60974002,111000.0,110990.0,0.69672]
[1747922213765,0.00901063,110980.0,110960.0,0.17401498]
[1747922213981,0.18922328,110980.0,110970.0,4.33035889]
[1747922214190,0.19823317,110980.0,110970.0,3.6606724]
[1747922214393,0.2072438,110980.0,110970.0,4.34846161]
[1747922214595,0.2072438,110980.0,110970.0,4.36580396]
[1747922214823,0.20724364,110980.0,110970.0,4.36580404]
[1747922215045,0.21625419,110980.0,110970.0,4.36580404]
[1747922215672,0.21625419,110980.0,110970.0,4.36380404]
[1747922216112,0.01801988,110980.0,110970.0,4.35479235]
[1747922216381,0.30861428,110980.0,110970.0,1.55293132]
[1747922216593,0.30861428,110980.0,110970.0,1.68961132]
[1747922216594,0.62777898,110980.0,110970.0,1.68961132]
[1747922216798,0.62777898,110980.0,110970.0,2.32665132]
[1747922218394,0.62777898,110980.0,110970.0,2.24145132]
[1747922218602,0.62777898,110980.0,110970.0,2.24445132]
[1747922219808,0.62777898,110980.0,110970.0,1.11251132]
[1747922220038,0.62777898,110980.0,110970.0,1.80943132]
[1747922220193,0.62777898,110980.0,110970.0,1.53947132]
[1747922220395,0.62777898,110980.0,110970.0,0.68131132]
[1747922220596,0.62777898,110980.0,110970.0,1.37827132]
[1747922222516,0.62777898,110980.0,110970.0,1.37831132]
[1747922222734,0.62777898,110980.0,110970.0,0.68131132]
[1747922223156,0.62777898,110980.0,110970.0,1.37835132]
[1747922224268,0.62777898,110980.0,110970.0,0.68135132]
[1747922224542,0.62777898,110980.0,110970.0,1.37839132]
[1747922226236,0.62777898,110980.0,110970.0,1.10839132]
[1747922226470,0.62777898,110980.0,110970.0,1.37839132]
[1747922227390,0.62777898,110980.0,110970.0,1.56763157]
[1747922227608,0.54724348,110980.0,110970.0,0.87960268]
[1747922227821,0.0180202,110980.0,110970.0,1.6278645]
[1747922228055,0.0180202,110980.0,110970.0,1.61885314]
[1747922228056,0.00900998,110980.0,110970.0,1.61885314]
[1747922228287,0.02703026,110980.0,110970.0,1.65195282]
[1747922228498,0.03604073,110980.0,110970.0,1.64695282]
[1747922228695,0.03604073,110980.0,110970.0,1.61385282]
[1747922228905,0.01801996,110980.0,110970.0,1.61385282]
[1747922229122,0.35100933,110990.0,110980.0,0.20724388]
[1747922229337,0.3780374,110990.0,110980.0,3.27202394]
[1747922229540,0.3780374,110990.0,110980.0,3.30532394]
[1747922230390,0.01100909,110990.0,110980.0,3.33602394]
[1747922230558,0.002,110990.0,110980.0,4.03314394]
[1747922230764,0.002,110990.0,110980.0,4.1226895]
[1747922231578,0.002,110990.0,110980.0,4.1236895]
[1747922231983,0.002,110990.0,110980.0,4.1226895]
[1747922232425,0.002,110990.0,110980.0,4.1256895]
[1747922232647,0.002,110990.0,110980.0,4.1266895]
[1747922233442,0.002,110990.0,110980.0,3.4295695]
[1747922233659,0.002,110990.0,110980.0,4.1245695]
[1747922234631,0.002,110990.0,110980.0,3.25399328]
[1747922234874,0.28137862,110990.0,110980.0,4.14857]
[1747922235071,0.27236921,110990.0,110980.0,3.3121]
[1747922235279,0.27236921,110990.0,110980.0,3.2976]
[1747922235486,0.36191477,110990.0,110980.0,2.6026]
[1747922235686,0.36191477,110990.0,110980.0,3.0276]
[1747922235928,0.73421477,110990.0,110980.0,2.6026]
[1747922236099,0.74875562,110990.0,110980.0,1.4017]
[1747922236297,0.78025562,110990.0,110980.0,1.0617]
[1747922236583,0.78025562,110990.0,110980.0,1.4412]
[1747922237345,0.78025562,110990.0,110980.0,1.4402]
[1747922237752,0.78025562,110990.0,110980.0,1.4372]
[1747922238169,0.78025562,110990.0,110980.0,1.43724]
[1747922238380,0.54021588,110990.0,110980.0,1.43724]
[1747922238595,0.54021588,110990.0,110980.0,1.63547383]
[1747922238796,0.36001906,110990.0,110980.0,1.64448421]
[1747922238996,0.36902823,110990.0,110980.0,1.64448421]
[1747922239232,0.36902823,110990.0,110980.0,1.65349451]
[1747922239233,0.3780378,110990.0,110980.0,1.65349451]
[1747922239450,0.54922536,110990.0,110980.0,1.63547383]
[1747922239731,0.54021579,110990.0,110980.0,1.43724]
[1747922239891,0.69829255,110990.0,110980.0,2.20354]
[1747922240100,0.69829255,110990.0,110980.0,2.34024]
[1747922240296,0.69829255,110990.0,110980.0,1.87544]
[1747922240605,0.69829255,110990.0,110980.0,1.08384]
[1747922240831,0.69829255,110990.0,110980.0,1.09225111]
[1747922241037,0.70684843,110990.0,110980.0,3.28365111]
[1747922243080,0.67384843,110990.0,110980.0,3.28365111]
[1747922244318,0.70444843,110990.0,110980.0,1.63005111]
[1747922244518,0.67384843,110990.0,110980.0,1.63005111]
[1747922246034,0.67384843,110990.0,110980.0,0.93501111]
[1747922246238,0.67384843,110990.0,110980.0,1.63009111]
[1747922246811,0.67384843,110990.0,110980.0,1.13324445]
[1747922246812,0.48229354,110990.0,110980.0,1.13324445]
[1747922247096,0.02687397,111010.0,110980.0,1.81130376]
[1747922247333,0.01426502,111040.0,111030.0,0.23825023]
[1747922247544,0.20338572,111040.0,111030.0,1.57286]
[1747922247755,0.21239132,111040.0,111030.0,1.08396]
[1747922247954,0.01426502,111040.0,111030.0,1.39577073]
[1747922248157,0.31994694,111040.0,111030.0,0.28023149]
[1747922248367,0.10381058,111040.0,111030.0,0.45017149]
[1747922248611,0.10396316,111040.0,111030.0,5.52719023]
[1747922248814,0.11296827,111040.0,111030.0,3.06208423]
[1747922249031,0.0144176,111040.0,111030.0,3.08429039]
[1747922249228,0.0144176,111040.0,111030.0,2.77199039]
[1747922249662,0.00015258,111040.0,111030.0,2.92363595]
[1747922249917,0.00015258,111040.0,111030.0,3.2812272]
[1747922250121,0.002,111050.0,111040.0,0.26923157]
[1747922250307,0.002,111050.0,111040.0,5.79753713]
[1747922250534,0.03153151,111060.0,111050.0,0.54711292]
[1747922250766,0.01983151,111060.0,111050.0,6.46739933]
[1747922250987,0.00423151,111060.0,111050.0,6.46739933]
[1747922251219,0.002,111070.0,111060.0,0.27069427]
[1747922251425,0.002,111070.0,111060.0,5.41023983]
[1747922251636,0.002,111070.0,111060.0,5.43622525]
[1747922252037,0.002,111070.0,111060.0,5.20513322]
[1747922252235,0.002,111070.0,111060.0,5.41222749]
[1747922252517,0.002,111070.0,111060.0,6.07453983]
[1747922252935,0.002,111070.0,111060.0,6.07753983]
[1747922253133,0.002,111070.0,111060.0,6.13270021]
[1747922253545,0.002,111070.0,111060.0,5.86270021]
[1747922253744,0.002,111070.0,111060.0,6.10663479]
[1747922254183,0.07215333,111100.0,111090.0,0.20703834]
[1747922254326,0.07215333,111100.0,111090.0,6.34051834]
[1747922254501,0.07266215,111100.0,111090.0,6.34051834]
[1747922255006,0.08166232,111100.0,111090.0,6.34051834]
[1747922255768,0.07666215,111100.0,111090.0,6.34051834]
[1747922255975,0.0856624,111100.0,111090.0,6.34051834]
[1747922256408,0.00450882,111100.0,111090.0,6.34051834]
[1747922257481,0.01350907,111100.0,111090.0,6.34051834]
[1747922257712,0.01350907,111100.0,111090.0,6.35411705]
[1747922258124,0.00450882,111100.0,111090.0,6.35411705]
[1747922259182,0.00450882,111100.0,111090.0,6.44366261]
[1747922259404,0.00450882,111100.0,111090.0,6.50249017]
[1747922260307,0.00450882,111100.0,111090.0,6.52847559]
[1747922260522,0.00450882,111100.0,111090.0,6.50249017]
[1747922260739,0.00450882,111100.0,111090.0,6.52847559]
[1747922260952,0.00350882,111100.0,111090.0,6.52847559]
[1747922261643,0.00050882,111100.0,111090.0,6.50249017]
[1747922262096,0.002,111130.0,111120.0,0.20698245]
[1747922262327,0.00215257,111130.0,111120.0,6.06807557]
[1747922262574,0.00215257,111130.0,111120.0,6.07094801]
[1747922262815,0.00215257,111130.0,111120.0,6.46576099]
[1747922263046,0.002,111150.0,111140.0,0.2069452]
[1747922263285,0.002,111150.0,111140.0,6.00477076]
[1747922263741,0.002,111150.0,111140.0,5.73497076]
[1747922264001,0.24112642,111150.0,111140.0,2.83801078]
[1747922264238,0.65327975,111150.0,111140.0,1.72490828]
[1747922264467,0.65327975,111150.0,111140.0,1.73390553]
[1747922264666,0.44635333,111150.0,111140.0,1.74290262]
[1747922264876,0.47334257,111150.0,111140.0,1.74290262]
[1747922265325,0.49133554,111150.0,111140.0,1.73390553]
[1747922265537,0.48233877,111150.0,111140.0,1.73390545]
[1747922265915,0.49133554,111150.0,111140.0,1.74290254]
[1747922266110,0.49133554,111150.0,111140.0,1.74286254]
[1747922266312,0.49233554,111150.0,111140.0,1.74286254]
[1747922266538,0.42018212,111150.0,111140.0,1.74286254]
[1747922266748,0.343,111150.0,111140.0,1.74286254]
[1747922266950,0.003,111150.0,111140.0,1.74286254]
[1747922267799,0.25492311,111150.0,111140.0,1.73386561]
[1747922268005,0.57693047,111150.0,111140.0,0.38848]
[1747922268212,0.78517021,111150.0,111140.0,0.38848]
[1747922268418,0.78517021,111150.0,111140.0,0.65824]
[1747922268635,0.78517021,111150.0,111140.0,0.65828]
[1747922270318,0.78517021,111150.0,111140.0,4e-05]
[1747922270552,0.71301688,111150.0,111140.0,4e-05]
[1747922271585,0.70901688,111150.0,111140.0,4e-05]
[1747922271906,0.71801688,111150.0,111140.0,0.26976]
[1747922272810,0.71501688,111150.0,111140.0,0.26976]
[1747922273428,0.71501688,111150.0,111140.0,0.69252]
[1747922273931,0.70901688,111150.0,111140.0,0.69252]
[1747922274101,0.71101688,111150.0,111140.0,0.69252]
[1747922274654,0.71601688,111150.0,111140.0,0.69252]
[1747922275075,0.71101688,111150.0,111140.0,0.69252]
[1747922275506,0.71501688,111150.0,111140.0,0.69252]
[1747922276774,0.68301688,111150.0,111140.0,0.69252]
[1747922277251,0.66847603,111150.0,111140.0,0.69252]
[1747922278015,0.67682681,111150.0,111140.0,0.69252]
[1747922278501,0.67682681,111150.0,111140.0,2.70267078]
[1747922278502,0.21428125,111150.0,111140.0,2.70267078]
[1747922278947,0.20593047,111150.0,111140.0,2.51372]
[1747922279162,0.71461688,111150.0,111140.0,0.42276]
[1747922279380,0.71461688,111150.0,111140.0,0.69248]
[1747922279601,0.81407085,111150.0,111140.0,4e-05]
[1747922280499,0.72461688,111150.0,111140.0,4e-05]
[1747922280693,0.73299305,111150.0,111140.0,4e-05]
[1747922281107,0.74155154,111150.0,111140.0,4e-05]
[1747922281688,0.76658164,111150.0,111140.0,4e-05]
[1747922283633,0.55254225,111110.0,111100.0,0.00204]
[1747922283846,0.73291791,111110.0,111100.0,0.00219257]
[1747922284291,0.7414764,111110.0,111100.0,0.00219257]
[1747922284936,0.7424764,111110.0,111100.0,0.00219257]
[1747922286301,0.7474764,111110.0,111100.0,0.00219257]
[1747922287436,0.7464764,111110.0,111100.0,0.00219257]
[1747922289298,1.11508517,111110.0,111100.0,0.00219257]
[1747922289514,0.83532517,111110.0,111100.0,0.00219257]
[1747922291285,0.83132517,111110.0,111100.0,0.00219257]
[1747922291859,0.82632517,111110.0,111100.0,0.00219257]
[1747922292310,0.83032517,111110.0,111100.0,0.00219257]
[1747922293398,0.83332517,111110.0,111100.0,0.00219257]
[1747922294709,0.80829507,111110.0,111100.0,0.00219257]
[1747922295376,0.83327766,111110.0,111100.0,0.00219257]
[1747922295593,0.80829507,111110.0,111100.0,0.00219257]